bitfinex-derivatives/quotes_ETHF0:USTF0_20230403
["timestamp","ask_amount","ask_price","bid_price","bid_amount"]
[1680530391575,2.7817703,1808.5,1807.9,2.191]
[1680530391781,2.205,1808.5,1808.0,1.0]
[1680530391981,2.213,1808.4,1808.0,1.0]
[1680530392283,2.213,1808.4,1807.9,1.0]
[1680530392679,2.213,1808.4,1808.0,0.09429829]
[1680530392878,0.04735783,1808.3,1807.9,1.0]
[1680530393391,0.04735783,1808.3,1807.8,8.31595374]
[1680530393983,0.04735783,1808.3,1807.9,3.2078]
[1680530394289,0.04735783,1808.3,1807.9,4.2078]
[1680530394476,0.04735783,1808.3,1807.9,1.0]
[1680530394678,0.04735783,1808.3,1807.8,8.31595374]
[1680530394978,0.04735783,1808.3,1807.8,9.31595374]
[1680530395287,0.04735783,1808.3,1807.8,8.31595374]
[1680530395685,0.04735783,1808.3,1807.9,3.2078]
[1680530395877,0.04735783,1808.3,1807.9,9.7488]
[1680530396184,2.75627659,1808.4,1807.9,6.11595374]
[1680530396385,0.54327659,1808.4,1808.1,2.213]
[1680530396589,5.4068,1808.6,1808.2,4.2078]
[1680530396789,5.4068,1808.6,1808.2,1.39443362]
[1680530397087,5.4068,1808.6,1808.2,0.39443362]
[1680530398989,5.4128,1808.6,1808.2,0.39443362]
[1680530399191,5.4128,1808.6,1808.0,6.98275374]
[1680530400191,2.20591058,1808.8,1808.3,2.194]
[1680530400395,9.14164349,1809.3,1808.3,2.194]
[1680530400396,4.63739525,1810.1,1809.0,3.2078]
[1680530400594,0.86501489,1810.3,1810.0,3.2078]
[1680530400891,2.01836807,1810.5,1810.2,10.9618]
[1680530401089,2.01836807,1810.5,1809.6,3.62622559]
[1680530401090,2.01836807,1810.5,1810.4,10.9428]
[1680530401290,0.57634502,1810.8,1810.4,10.9428]
[1680530401487,0.57634502,1810.8,1810.4,10.9398]
[1680530401689,3.2078,1810.7,1809.9,0.5724689]
[1680530401984,2.205,1810.3,1809.8,1.13775598]
[1680530402185,2.205,1810.3,1809.7,1.13775598]
[1680530402388,5.4128,1810.3,1809.7,1.13775598]
[1680530402583,5.81416116,1810.2,1809.8,3.2078]
[1680530402785,5.4208,1810.1,1809.6,0.55706832]
[1680530402984,2.199,1809.7,1809.4,0.5724689]
[1680530403281,2.199,1809.7,1809.3,3.2078]
[1680530403681,3.78414502,1809.9,1809.3,5.9792689]
[1680530403682,3.2078,1809.9,1809.3,5.9792689]
[1680530403892,1.0,1809.8,1809.4,2.194]
[1680530404082,1.86501489,1810.2,1809.7,2.199]
[1680530404083,1.57634502,1810.2,1809.7,2.199]
[1680530404289,0.57634502,1810.2,1809.7,2.199]
[1680530404695,5.96311859,1810.3,1809.7,2.199]
[1680530404897,1.0,1810.2,1809.7,2.199]
[1680530405192,1.0,1810.2,1809.7,5.4068]
[1680530405588,3.2078,1810.1,1809.7,2.199]
[1680530405788,2.213,1810.0,1809.5,2.213]
[1680530405993,2.205,1809.9,1809.3,5.4078]
[1680530406294,2.213,1810.1,1809.5,5.4018]
[1680530406592,1.0,1810.2,1809.7,5.4208]
[1680530406790,3.2078,1810.1,1809.7,2.213]
[1680530406993,1.0,1810.0,1809.7,2.213]
[1680530407392,2.213,1809.8,1809.6,0.90041549]
[1680530407692,1.0,1809.7,1809.5,3.2078]
[1680530407885,5.4208,1810.0,1809.5,3.2078]
[1680530408082,1.0,1810.1,1809.6,2.213]
[1680530408293,2.204,1809.8,1809.5,3.2078]
[1680530408499,1.0,1809.7,1809.5,3.2078]
[1680530408885,1.0,1810.1,1809.6,2.213]
[1680530409193,1.0,1810.1,1809.7,3.2078]
[1680530409601,3.213,1810.1,1809.7,3.2078]
[1680530410093,2.213,1809.9,1809.5,3.2078]
[1680530410390,2.213,1809.9,1808.9,5.4068]
[1680530410391,2.213,1809.6,1808.9,5.4068]
[1680530410599,3.207,1809.5,1808.9,5.4068]
[1680530410894,1.0,1809.8,1809.3,5.4208]
[1680530411100,11.527,1810.1,1809.5,2.213]
[1680530411283,3.2078,1809.9,1809.4,2.213]
[1680530411483,1.0,1809.9,1809.4,2.213]
[1680530411687,2.199,1809.6,1809.4,3.2078]
[1680530411897,2.209,1809.5,1809.1,3.2078]
[1680530412094,2.199,1809.5,1809.1,3.2078]
[1680530412297,2.213,1809.7,1809.3,3.2078]
[1680530412495,3.205,1809.9,1809.3,5.4018]
[1680530412696,4.2078,1810.1,1809.5,5.4208]
[1680530412697,3.199,1810.1,1809.5,5.4208]
[1680530412998,2.199,1810.1,1809.5,5.4208]
[1680530413205,2.199,1810.1,1809.7,3.2078]
[1680530413593,2.199,1810.1,1809.5,5.4208]
[1680530413897,2.199,1810.1,1809.9,3.2078]
[1680530414095,2.199,1810.1,1809.6,3.2078]
[1680530414296,2.199,1810.1,1809.8,3.2078]
[1680530414606,2.199,1810.1,1809.6,3.2078]
[1680530415198,2.199,1810.1,1809.8,3.2078]
[1680530415400,1.0,1810.2,1809.8,3.2078]
[1680530415401,2.213,1809.9,1809.8,3.2078]
[1680530415612,8.3219,1810.5,1809.8,3.2078]
[1680530415613,2.204,1810.1,1809.8,3.2078]
[1680530415902,1.0,1810.0,1809.5,2.199]
[1680530416101,1.0,1810.0,1809.6,3.2078]
[1680530416306,2.213,1809.8,1809.4,3.2078]
[1680530416504,2.205,1809.7,1809.4,3.2078]
[1680530416805,2.205,1809.7,1809.6,3.2078]
[1680530417003,2.213,1809.8,1809.6,3.2078]
[1680530417402,2.213,1810.0,1809.6,3.2078]
[1680530417705,2.213,1810.0,1809.8,3.2078]
[1680530417905,2.213,1810.0,1809.6,3.2078]
[1680530418403,2.213,1810.0,1809.8,3.2078]
[1680530418702,2.213,1810.0,1809.6,3.2078]
[1680530418910,2.213,1809.9,1809.6,3.2078]
[1680530419292,2.213,1809.9,1809.3,5.4208]
[1680530419493,2.213,1809.9,1809.5,3.2078]
[1680530419698,2.213,1809.8,1809.5,3.2078]
[1680530419899,2.213,1809.6,1809.2,3.2078]
[1680530420307,2.213,1809.6,1809.4,3.2078]
[1680530421006,2.205,1810.2,1809.5,5.541]
[1680530421303,2.205,1810.2,1809.8,3.2078]
[1680530422308,2.213,1810.0,1809.6,3.2078]
[1680530422503,1.0,1810.1,1809.5,3.2078]
[1680530422504,2.199,1809.9,1809.5,3.2078]
[1680530422804,2.199,1809.9,1809.4,0.56445359]
[1680530423005,2.199,1809.9,1809.5,3.2078]
[1680530423403,2.199,1809.9,1809.7,3.2078]
[1680530424006,2.213,1810.1,1809.7,3.2078]
[1680530424709,2.213,1810.1,1809.8,3.2078]
[1680530425206,2.213,1810.1,1809.7,3.2078]
[1680530425514,2.213,1810.1,1809.6,1.0]
[1680530425700,2.213,1810.1,1809.5,5.4068]
[1680530425896,2.213,1809.9,1809.3,5.94577698]
[1680530426102,2.209,1809.6,1809.3,3.2078]
[1680530427102,5.4068,1809.9,1809.4,0.36088176]
[1680530427308,1.0,1809.8,1809.3,5.4078]
[1680530427906,5.4068,1809.9,1809.3,5.4078]
[1680530428413,1.0,1809.8,1809.3,5.4078]
[1680530428611,2.199,1809.9,1809.3,5.4078]
[1680530428817,1.0,1810.0,1809.5,2.199]
[1680530429513,5.4208,1810.1,1809.5,5.4068]
[1680530429711,5.4208,1810.1,1809.5,2.199]
[1680530429906,5.4208,1810.3,1809.9,3.2078]
[1680530430113,2.213,1810.3,1809.7,5.4018]
[1680530430314,2.213,1810.3,1809.9,3.2078]
[1680530430509,2.213,1810.3,1810.0,3.2078]
[1680530430710,2.213,1810.1,1809.7,3.2078]
[1680530432016,2.213,1810.2,1809.7,2.191]
[1680530432220,2.213,1810.2,1809.8,1.0]
[1680530432414,2.213,1810.2,1810.0,3.2078]
[1680530433221,2.213,1810.2,1809.9,3.2078]
[1680530433520,2.213,1810.2,1810.1,3.2078]
[1680530433720,2.213,1810.2,1809.8,4.2078]
[1680530433918,2.213,1810.2,1810.0,3.2078]
[1680530434224,2.213,1810.2,1809.8,4.2078]
[1680530434721,2.213,1810.2,1810.0,3.2078]
[1680530436822,2.213,1810.5,1810.0,3.2078]
[1680530437022,3.213,1810.5,1810.2,3.2078]
[1680530437217,2.213,1810.5,1809.9,5.4078]
[1680530437414,5.4208,1810.5,1809.9,5.4078]
[1680530437618,1.0,1810.4,1809.9,5.4078]
[1680530438015,2.213,1810.3,1809.9,3.2078]
[1680530438621,2.213,1810.3,1810.1,3.2078]
[1680530438920,3.2078,1810.5,1810.1,3.2078]
[1680530438921,2.209,1810.5,1810.1,3.2078]
[1680530439123,2.209,1810.5,1809.9,5.4208]
[1680530439324,2.209,1810.5,1810.1,3.2078]
[1680530439711,2.209,1810.5,1810.2,1.0]
[1680530439919,7.1834,1811.1,1810.4,2.199]
[1680530440223,1.0,1811.0,1810.5,5.3988]
[1680530440417,2.209,1810.9,1810.4,2.213]
[1680530440830,2.209,1810.9,1810.4,3.213]
[1680530441025,2.209,1810.9,1810.5,3.2078]
[1680530441321,2.209,1810.9,1810.7,3.2078]
[1680530441516,3.2078,1811.1,1810.5,5.4208]
[1680530441717,3.2078,1811.1,1810.5,2.213]
[1680530442122,3.209,1811.0,1810.6,1.09342402]
[1680530442525,2.209,1811.0,1810.6,4.30122402]
[1680530442816,2.209,1811.0,1810.6,1.09342402]
[1680530443218,2.209,1811.0,1810.6,4.30122402]
[1680530443820,3.2078,1811.1,1810.7,2.2]
[1680530444220,3.78414502,1811.1,1810.7,2.2]
[1680530444915,3.78414502,1811.1,1810.8,2.194]
[1680530445115,3.2078,1811.1,1810.8,2.194]
[1680530445313,3.2078,1811.1,1811.0,2.213]
[1680530445517,0.57634502,1811.3,1811.0,2.213]
[1680530446118,1.44135991,1811.4,1811.0,2.213]
[1680530446324,2.78134502,1811.4,1810.8,2.213]
[1680530446617,3.2078,1811.3,1810.8,2.213]
[1680530446815,2.209,1810.9,1810.6,1.09342402]
[1680530447411,2.213,1810.8,1810.6,1.09342402]
[1680530447624,2.213,1811.0,1810.4,4.34077099]
[1680530447826,2.213,1811.0,1810.5,1.0]
[1680530448013,2.78934502,1811.2,1810.6,2.194]
[1680530448219,3.2078,1811.1,1810.6,2.194]
[1680530448419,2.205,1811.0,1810.5,3.2078]
[1680530448616,2.205,1811.0,1810.4,2.75530209]
[1680530448617,1.0,1810.9,1810.6,2.191]
[1680530448821,3.2078,1811.0,1810.6,5.3988]
[1680530449016,3.2078,1811.0,1810.6,2.191]
[1680530449335,2.213,1810.8,1810.4,0.55530209]
[1680530449523,2.213,1810.8,1810.2,5.9802689]
[1680530449722,2.213,1810.8,1810.4,3.2078]
[1680530450021,2.213,1811.0,1810.4,5.4018]
[1680530450326,4.64915991,1811.2,1810.7,2.213]
[1680530450523,2.204,1811.1,1810.6,3.2078]
[1680530451026,2.204,1811.1,1810.7,3.2078]
[1680530451230,2.78934502,1811.3,1810.7,5.4208]
[1680530451625,2.78934502,1811.3,1810.7,10.9618]
[1680530451826,2.78934502,1811.3,1810.9,3.2078]
[1680530452121,3.78414502,1811.4,1810.9,5.4078]
[1680530452325,2.205,1811.2,1810.7,3.2078]
[1680530452721,2.205,1811.2,1810.9,3.2078]
[1680530452926,2.205,1811.2,1810.6,5.4018]
[1680530453121,2.205,1811.2,1810.8,3.2078]
[1680530453727,1.0,1811.1,1810.6,5.4018]
[1680530453916,2.205,1811.2,1810.6,5.4018]
[1680530454120,1.0,1811.3,1810.6,3.2078]
[1680530454121,2.213,1811.0,1810.6,3.2078]
[1680530454820,2.213,1811.2,1810.6,2.213]
[1680530455130,1.0,1811.1,1810.8,3.2078]
[1680530455328,2.209,1811.0,1810.6,3.2078]
[1680530455525,1.0,1810.9,1810.4,2.77213861]
[1680530455842,2.209,1811.0,1810.6,3.2078]
[1680530456124,5.4208,1811.2,1810.7,5.541]
[1680530456330,1.0,1811.1,1810.6,3.2078]
[1680530456523,2.213,1811.0,1810.4,4.33940751]
[1680530456725,2.213,1811.0,1810.5,2.191]
[1680530457126,2.213,1811.0,1810.6,0.78187431]
[1680530457322,2.213,1811.0,1810.6,3.98967431]
[1680530457526,2.213,1811.0,1810.6,0.78187431]
[1680530457733,2.213,1811.0,1810.6,3.98967431]
[1680530457932,2.199,1811.2,1810.7,2.194]
[1680530458122,2.199,1811.2,1810.8,3.2078]
[1680530458427,3.213,1811.1,1810.8,3.2078]
[1680530458626,2.213,1811.1,1810.6,3.98967431]
[1680530458832,2.199,1811.3,1810.7,2.213]
[1680530459133,1.0,1811.2,1810.8,3.2078]
[1680530459334,6.4068,1811.3,1810.8,3.2078]
[1680530459633,3.199,1811.3,1810.8,3.2078]
[1680530460030,2.199,1811.3,1811.0,3.2078]
[1680530460927,0.57634502,1811.4,1810.9,2.194]
[1680530461231,2.213,1811.1,1810.6,0.78187431]
[1680530461431,2.213,1811.1,1810.8,3.2078]
[1680530461737,3.78414502,1811.3,1810.7,2.199]
[1680530461738,0.57634502,1811.2,1810.7,2.199]
[1680530461936,1.57634502,1811.2,1810.7,2.199]
[1680530462127,5.99714502,1811.3,1810.8,3.2078]
[1680530462630,5.99714502,1811.3,1810.7,2.199]
[1680530462936,5.99714502,1811.3,1810.7,7.74]
[1680530463138,5.99714502,1811.3,1810.7,2.199]
[1680530463435,1.0,1811.2,1810.7,2.199]
[1680530463939,2.213,1811.0,1810.6,3.98967431]
[1680530464126,3.78134502,1811.2,1810.6,2.99487431]
[1680530464338,2.204,1810.7,1810.6,0.78187431]
[1680530464630,3.2078,1810.7,1810.2,2.2]
[1680530464831,3.2078,1810.7,1810.2,5.4078]
[1680530465425,3.2078,1810.7,1810.4,2.194]
[1680530465633,2.204,1811.0,1810.4,5.4018]
[1680530465829,3.2078,1810.9,1810.6,2.199]
[1680530466225,3.2078,1810.9,1810.4,3.2078]
[1680530466226,3.2078,1810.9,1810.4,2.213]
[1680530466634,2.78934502,1811.0,1810.4,2.213]
[1680530466830,2.213,1811.0,1810.5,3.2078]
[1680530467029,2.78934502,1811.0,1810.5,3.2078]
[1680530467232,2.204,1810.8,1810.2,2.199]
[1680530468141,2.204,1810.8,1810.2,5.4068]
[1680530469030,3.2078,1810.7,1810.2,5.4068]
[1680530469936,2.204,1810.8,1810.2,5.4068]
[1680530470333,3.2078,1810.5,1810.0,5.97472795]
[1680530470533,3.213,1810.6,1810.0,5.97472795]
[1680530470842,3.2078,1810.5,1810.0,5.97472795]
[1680530471235,3.2078,1810.5,1810.0,6.54719685]
[1680530471443,3.2078,1810.5,1810.3,2.191]
[1680530472133,3.2078,1810.5,1810.4,2.77695432]
[1680530473029,3.2078,1810.5,1810.4,2.76395432]
[1680530473230,3.2078,1810.5,1810.4,0.56395432]
[1680530473632,3.2078,1810.5,1810.3,2.191]
[1680530473834,3.2078,1810.5,1810.3,2.18657412]
[1680530474638,0.57634502,1810.6,1810.4,2.213]
[1680530474842,0.57634502,1810.8,1810.5,2.2]
[1680530475036,0.57634502,1810.8,1810.7,2.213]
[1680530475431,3.78496346,1810.8,1810.7,2.213]
[1680530476247,3.78496346,1810.8,1810.4,2.213]
[1680530476540,3.78498483,1810.7,1810.4,2.213]
[1680530476740,3.78498483,1810.7,1810.6,2.194]
[1680530476945,3.2078,1810.7,1810.6,2.194]
[1680530477147,3.78498483,1810.7,1810.6,2.194]
[1680530477641,0.57718483,1810.8,1810.6,2.213]
[1680530477842,0.57718483,1810.8,1810.7,2.191]
[1680530479333,1.15335318,1810.8,1810.5,2.213]
[1680530479645,0.57775912,1810.6,1810.5,2.213]
[1680530481342,1.57775912,1810.6,1810.5,2.213]
[1680530481546,4.78555912,1810.6,1810.5,2.213]
[1680530481850,3.78555912,1810.6,1810.5,2.213]
[1680530482352,5.22779186,1810.6,1810.1,2.199]
[1680530482546,1.4450364,1810.4,1810.1,2.199]
[1680530482744,1.0,1810.3,1810.1,2.199]
[1680530483044,0.57801456,1810.3,1810.1,2.199]
[1680530483242,4.6528364,1810.4,1810.1,2.199]
[1680530483440,0.57801456,1810.3,1810.1,2.199]
[1680530484647,3.2078,1810.2,1810.1,2.199]
[1680530485049,3.78581456,1810.2,1809.9,2.7854689]
[1680530485249,5.4208,1810.0,1809.8,0.5724689]
[1680530485542,5.4208,1810.0,1809.3,0.57461227]
[1680530485543,4.42041176,1809.9,1809.3,0.57461227]
[1680530485745,3.2078,1809.4,1809.3,0.57461227]
[1680530486249,3.2078,1809.4,1809.2,3.62836896]
[1680530486445,5.4168,1809.4,1809.2,0.57461227]
[1680530486651,1.0,1809.3,1809.2,0.57461227]
[1680530487039,0.29421447,1809.3,1809.2,0.57461227]
[1680530487346,1.0,1809.3,1809.1,6.58012151]
[1680530487543,3.2078,1809.4,1809.1,6.58012151]
[1680530487544,3.2078,1809.2,1809.1,6.58012151]
[1680530488439,3.2078,1809.2,1809.1,5.48012151]
[1680530490345,4.3048,1809.2,1809.1,4.20142151]
[1680530491054,3.2078,1809.2,1809.1,4.20142151]
[1680530491251,4.201,1809.1,1808.4,1.105]
[1680530491452,3.2078,1808.6,1808.4,1.105]
[1680530491655,1.0,1808.5,1808.4,1.105]
[1680530492254,1.0,1808.5,1808.3,2.204]
[1680530492455,3.2078,1808.4,1808.3,2.204]
[1680530492645,3.2078,1808.4,1808.1,2.208]
[1680530493349,3.2078,1808.4,1807.9,6.4018]
[1680530493552,3.2078,1808.4,1807.9,5.4018]
[1680530493752,3.2078,1808.2,1807.9,2.194]
[1680530494049,3.05541787,1808.2,1807.7,2.78261227]
[1680530494648,1.0,1808.1,1807.7,2.78261227]
[1680530494857,1.0,1808.1,1807.7,2.208]
[1680530495253,3.05541787,1808.2,1807.7,2.208]
[1680530495649,3.05541787,1808.2,1807.7,3.208]
[1680530495959,3.05541787,1808.2,1807.9,2.212]
[1680530496751,3.2078,1808.3,1807.9,2.212]
[1680530497557,3.2078,1808.1,1807.7,5.4118]
[1680530498557,3.2078,1808.1,1807.7,2.204]
[1680530499558,3.2078,1807.9,1807.7,2.204]
[1680530499860,3.2078,1807.9,1807.6,2.212]
[1680530500361,3.2078,1807.7,1807.2,7.2835]
[1680530500563,3.2078,1807.7,1807.2,2.194]
[1680530500752,3.2078,1807.7,1807.4,2.212]
[1680530501158,0.83691786,1807.6,1807.4,2.212]
[1680530501559,3.2078,1807.7,1807.4,2.212]
[1680530502063,0.86785991,1807.6,1807.3,2.204]
[1680530502264,3.2078,1807.7,1807.3,2.204]
[1680530502563,0.86785361,1807.6,1807.3,2.204]
[1680530502966,3.2078,1807.5,1807.3,2.204]
[1680530505065,3.2078,1807.5,1807.1,5.4198]
[1680530506963,2.212,1807.7,1807.3,3.2078]
[1680530507166,3.2078,1808.0,1807.3,3.2078]
[1680530507463,0.95095962,1807.6,1807.4,1.0]
[1680530507671,3.2078,1807.8,1807.5,2.209]
[1680530508770,3.2006177,1807.8,1807.5,2.209]
[1680530509069,3.2078,1808.0,1807.5,2.209]
[1680530509871,3.2078,1808.0,1807.5,3.209]
[1680530510174,3.2078,1808.0,1807.5,2.209]
[1680530510869,3.2078,1808.0,1807.5,3.209]
[1680530511970,3.2078,1808.0,1807.5,2.209]
[1680530512574,2.212,1808.1,1807.5,2.209]
[1680530513176,3.2078,1808.0,1807.5,2.209]
[1680530514577,3.2078,1807.8,1807.5,2.209]
[1680530516872,5.4198,1807.6,1807.3,0.54880215]
[1680530517081,3.2078,1807.4,1806.9,3.6573671]
[1680530517281,3.2078,1807.2,1806.9,3.6573671]
[1680530517980,3.199,1807.3,1806.9,3.6573671]
[1680530518281,5.4198,1807.2,1806.9,3.6573671]
[1680530520277,2.196,1807.4,1806.9,3.6573671]
[1680530520481,3.2078,1807.5,1807.0,2.212]
[1680530520781,3.2078,1807.5,1806.9,3.6573671]
[1680530521179,1.70691998,1807.7,1807.0,4.2078]
[1680530521385,1.14492164,1807.7,1807.6,2.208]
[1680530521584,3.2078,1808.2,1807.6,2.204]
[1680530521784,3.2078,1808.2,1807.9,2.212]
[1680530521983,3.2078,1808.0,1807.9,2.212]
[1680530522187,3.2078,1808.2,1807.9,2.212]
[1680530522486,3.2078,1808.2,1807.7,2.194]
[1680530524090,3.2078,1808.2,1807.9,2.212]
[1680530524298,3.2078,1808.2,1808.1,2.212]
[1680530525397,3.2078,1808.4,1808.1,2.212]
[1680530525598,3.2078,1808.4,1808.3,2.208]
[1680530526291,3.2078,1808.4,1808.1,2.194]
[1680530526486,3.2078,1808.4,1808.0,2.209]
[1680530526899,3.2078,1808.2,1808.0,2.209]
[1680530527200,5.4068,1808.5,1808.0,2.209]
[1680530527895,3.2078,1808.5,1808.1,8.735]
[1680530528101,3.2078,1808.5,1808.4,2.212]
[1680530528796,3.2078,1808.5,1808.4,3.212]
[1680530528995,3.2078,1808.7,1808.4,8.735]
[1680530529199,3.2078,1808.9,1808.6,2.208]
[1680530529392,3.2078,1808.9,1808.7,2.204]
[1680530529593,3.2078,1808.9,1808.7,2.31710128]
[1680530530197,3.2078,1808.9,1808.7,0.11310128]
[1680530530397,3.2078,1808.9,1808.5,2.212]
[1680530530795,3.2078,1808.9,1808.7,2.212]
[1680530531401,3.2078,1809.1,1808.8,2.212]
[1680530531604,0.57831448,1809.9,1809.3,5.0]
[1680530531804,3.78611448,1810.4,1809.8,2.194]
[1680530531992,3.2078,1810.4,1810.2,2.212]
[1680530532404,3.2078,1810.4,1810.1,2.212]
[1680530532599,3.2078,1810.2,1809.8,2.212]
[1680530532901,3.2078,1810.0,1809.6,2.209]
[1680530534099,3.2078,1810.0,1809.6,1.63505858]
[1680530534407,3.2078,1810.0,1809.8,2.204]
[1680530536900,3.2078,1810.0,1809.9,0.72078884]
[1680530537099,3.2078,1810.0,1809.8,2.204]
[1680530538105,3.2078,1810.0,1809.5,1.0]
[1680530538106,3.2078,1810.0,1809.7,2.212]
[1680530538813,5.4198,1810.4,1809.9,2.212]
[1680530539114,3.2078,1810.4,1810.1,2.208]
[1680530539609,3.2078,1810.2,1810.1,2.208]
[1680530542004,3.2078,1810.2,1810.0,2.209]
[1680530542209,3.2078,1810.2,1809.8,2.208]
[1680530542510,2.212,1810.3,1809.8,2.208]
[1680530542511,3.2078,1810.0,1809.8,2.208]
[1680530543203,3.2078,1810.0,1809.6,2.212]
[1680530543514,3.2078,1810.0,1809.4,2.209]
[1680530543515,3.2078,1809.7,1809.4,2.209]
[1680530547003,3.2078,1809.5,1809.2,2.75604314]
[1680530547207,3.2078,1809.5,1809.2,2.209]
[1680530547407,1.0,1809.4,1809.2,2.209]
[1680530547611,3.2078,1809.5,1809.2,2.209]
[1680530548909,3.2078,1809.5,1809.1,0.15230851]
[1680530548910,3.2078,1809.3,1809.1,0.15230851]
[1680530549312,1.0,1809.2,1809.1,0.15230851]
[1680530549712,5.4198,1809.3,1809.1,0.15230851]
[1680530549907,1.0,1809.2,1809.1,0.15230851]
[1680530550509,5.4198,1809.3,1809.1,0.15230851]
[1680530551115,3.2078,1809.3,1809.1,0.15230851]
[1680530551617,3.212,1809.5,1809.1,0.15230851]
[1680530552120,1.54266019,1809.5,1809.1,0.15230851]
[1680530552512,1.0,1809.3,1809.1,0.15230851]
[1680530553520,3.2078,1809.2,1809.1,0.15230851]
[1680530554819,1.0,1809.1,1808.7,0.53984189]
[1680530555020,3.2078,1808.9,1808.6,5.4118]
[1680530562130,3.2078,1808.9,1808.7,2.32982895]
[1680530564025,3.2078,1808.9,1808.7,3.32982895]
[1680530564226,3.2078,1808.9,1808.7,2.32982895]
[1680530566036,2.197,1808.8,1808.7,0.11782895]
[1680530566234,2.197,1808.8,1808.0,3.78029214]
[1680530566428,3.2078,1808.6,1808.1,0.57249214]
[1680530566739,3.2078,1808.6,1808.2,3.209]
[1680530566942,0.57831448,1809.4,1808.5,3.2078]
[1680530567141,3.2078,1809.8,1809.2,3.2078]
[1680530567331,3.2078,1809.8,1809.7,2.208]
[1680530567530,3.78611448,1810.1,1809.7,2.208]
[1680530567736,3.2078,1810.1,1809.7,2.208]
[1680530567933,3.2078,1809.9,1809.7,2.208]
[1680530568135,1.0,1810.0,1809.7,2.208]
[1680530568338,3.2078,1809.9,1809.4,2.212]
[1680530568541,1.0,1809.8,1809.4,2.212]
[1680530568743,3.2078,1809.9,1809.4,2.212]
[1680530569038,3.2078,1809.7,1809.4,2.212]
[1680530570630,3.2078,1809.9,1809.4,2.212]
[1680530572347,3.2078,1809.7,1809.4,2.212]
[1680530572633,3.2078,1809.5,1809.1,2.194]
[1680530574544,3.78611448,1809.7,1809.3,2.212]
[1680530576239,3.2078,1809.5,1809.3,2.212]
[1680530577444,3.2078,1809.5,1809.2,0.30574564]
[1680530577643,3.2078,1809.3,1809.0,2.194]
[1680530578648,3.2078,1809.3,1809.1,1.0]
[1680530578939,3.2078,1809.5,1809.1,1.0]
[1680530580444,3.2078,1809.5,1809.2,2.212]
[1680530580654,3.2078,1809.5,1809.3,1.0]
[1680530580946,3.2078,1809.5,1809.2,2.212]
[1680530581134,3.2078,1809.5,1809.3,1.0]
[1680530581334,0.57831448,1809.6,1809.3,1.0]
[1680530581548,3.2078,1809.6,1809.3,1.0]
[1680530581742,3.78611448,1809.6,1809.2,2.212]
[1680530583643,3.78611448,1809.6,1809.3,1.0]
[1680530584237,3.78611448,1809.6,1809.2,2.212]
[1680530584442,0.57831448,1809.6,1809.2,2.212]
[1680530584637,4.6535862,1809.7,1809.2,2.212]
[1680530584843,4.6535862,1809.7,1809.3,1.0]
[1680530585043,3.78611448,1809.7,1809.3,1.0]
[1680530585354,4.6535862,1809.7,1809.3,1.0]
[1680530585550,0.57831448,1809.6,1809.2,2.212]
[1680530586544,1.4457862,1809.7,1809.3,1.0]
[1680530587344,0.57831448,1809.7,1809.5,2.208]
[1680530587551,0.57831448,1809.7,1809.6,1.0]
[1680530587745,0.57831448,1809.7,1809.6,3.194]
[1680530588150,0.57831448,1809.8,1809.6,3.194]
[1680530588350,0.57831448,1809.9,1809.7,2.212]
[1680530588653,0.57831448,1810.0,1809.8,2.194]
[1680530589648,0.57831448,1810.0,1809.8,5.4018]
[1680530589844,0.57831448,1810.0,1809.9,1.0]
[1680530590245,0.57831448,1810.0,1809.8,5.4018]
[1680530590445,0.57831448,1810.1,1809.9,1.0]
[1680530591154,0.57831448,1810.1,1809.8,5.4018]
[1680530591549,0.57831448,1810.1,1809.9,1.0]
[1680530592154,0.57831448,1810.1,1810.0,0.60813908]
[1680530592442,0.57831448,1810.1,1809.8,5.4018]
[1680530592443,0.57831448,1810.1,1809.9,1.0]
[1680530593047,0.57831448,1810.2,1809.9,1.0]
[1680530596057,4.6535862,1810.3,1810.0,2.209]
[1680530596255,3.78611448,1810.3,1810.1,1.0]
[1680530596857,3.78611448,1810.3,1810.0,2.209]
[1680530598255,3.2078,1810.3,1810.0,2.209]
[1680530598561,0.57831448,1810.4,1810.0,2.209]
[1680530598854,0.57831448,1810.4,1810.0,5.4168]
[1680530600758,3.2078,1810.3,1810.0,2.209]
[1680530600956,5.4198,1810.1,1809.5,2.75946274]
[1680530601159,5.4198,1809.9,1809.3,7.1778]
[1680530601360,1.0,1809.8,1809.3,2.212]
[1680530601662,5.4198,1809.9,1809.3,2.212]
[1680530601857,5.4198,1809.9,1809.3,3.212]
[1680530602061,3.2078,1809.9,1809.4,2.204]
[1680530602262,3.2078,1809.9,1809.4,5.4118]
[1680530602863,3.2078,1809.9,1809.4,2.204]
[1680530603569,3.2078,1809.9,1809.4,5.4118]
[1680530603863,2.212,1810.0,1809.6,3.2078]
[1680530604065,3.78611448,1810.1,1809.6,2.209]
[1680530604264,3.78611448,1810.1,1809.6,5.4168]